fUSD/lending_fUSD_20251223
["ID","MTS","AMOUNT","RATE_DAILY","PERIOD"]
[399541799,1766467839140,-500.0,0.00016973,2]
[399541800,1766467839150,-500.0,0.00016973,2]
[399541801,1766467839159,-500.0,0.00016973,2]
[399541802,1766467839168,-598.60555363,0.00016973,2]
[399541803,1766467839177,-500.0,0.00016973,2]
[399541804,1766467839187,-349.16265713,0.00016973,2]
[399541805,1766467839196,-515.54072242,0.00016973,2]
[399541806,1766467839205,-500.0,0.00016973,2]
[399541807,1766467839215,-500.0,0.00016973,2]
[399541808,1766467839225,-500.0,0.00016973,2]
[399541809,1766467839235,-500.0,0.00016973,2]
[399541810,1766467839244,-500.0,0.00016973,2]
[399541811,1766467839254,-500.0,0.00016973,2]
[399541812,1766467839263,-500.0,0.00016973,2]
[399541813,1766467839273,-500.0,0.00016973,2]
[399541814,1766467839282,-648.46173605,0.00016973,2]
[399541815,1766467839291,-559.28446362,0.00016973,2]
[399541816,1766467839301,-500.0,0.00016973,2]
[399541817,1766467839310,-500.0,0.00016973,2]
[399541818,1766467839320,-500.0,0.00016973,2]
[399541819,1766467839329,-500.0,0.00016973,2]
[399541820,1766467839338,-500.0,0.00016973,2]
[399541821,1766467839348,-500.0,0.00016973,2]
[399541822,1766467839357,-500.0,0.00016973,2]
[399541823,1766467839366,-500.0,0.00016973,2]
[399541824,1766467839376,-500.0,0.00016973,2]
[399541825,1766467839385,-500.0,0.00016973,2]
[399541826,1766467839394,-500.0,0.00016973,2]
[399541827,1766467839403,-500.0,0.00016973,2]
[399541828,1766467839412,-500.0,0.00016973,2]
[399541829,1766467839421,-207.3850141,0.00016973,2]
[399541830,1766467839430,-500.0,0.00016973,2]
[399541831,1766467839439,-206.79834017,0.00016973,2]
[399541832,1766467839449,-1000.0,0.00016977,2]
[399541833,1766467839458,-600.0,0.00016986,2]
[399541834,1766467839467,-152.53710827,0.00016991,2]
[399541835,1766467839476,-666.0,0.00016999,2]
[399541836,1766467839486,-329.7921225,0.00016999,2]
[399541837,1766467839495,-317.81399698,0.00016999,2]
[399541838,1766467839504,-500.0,0.00016999,2]
[399541839,1766467839515,-167.40851347,0.00016999,2]
[399541840,1766467839525,-274.91316703,0.00016999,2]
[399541841,1766467839534,-500.0,0.00016999,2]
[399541842,1766467839543,-1232.01950828,0.00017,2]
[399541843,1766467840217,-151.0,0.00015189,2]
[399541844,1766467840228,-287.40999959,0.00017,2]
[399541845,1766467840239,-1103.10546808,0.00017,2]
[399541846,1766467840277,-8968.96,0.00017,2]
[399541847,1766467840289,-424.61229598,0.00017,2]
[399541848,1766467840333,-6057.14710165,0.00017,2]
[399541849,1766467840345,-2175.02066338,0.00017,2]
[399541850,1766467840355,-1109.86639144,0.00017,2]
[399541851,1766467840444,-999.99995,0.00017,2]
[399541852,1766467840508,-5072195.87813854,0.00017,2]
[399541868,1766467843215,-1352.08676711,0.00017,2]
[399541869,1766467843272,-6697.50952846,0.00017,2]
[399541870,1766467843285,-741.03312845,0.00017,2]
[399541871,1766467843436,-49699.31148721,0.00017,2]
[399541880,1766467846222,-3838.64415084,0.00017,2]
[399541881,1766467846279,-176290.35500577,0.00017,2]
[399541882,1766467846395,-3204.12792914,0.00017,2]
[399541883,1766467846406,-3425.14857616,0.00017,2]
[399541884,1766467846454,-5570.45453968,0.00017,2]
[399541885,1766467846466,-708.80835656,0.00017,2]
[399541886,1766467846476,-1182.49321358,0.00017,2]
[399541887,1766467846487,-1203.37088605,0.00017,2]
[399541888,1766467846501,-611.68963455,0.00017,2]
[399541889,1766467846513,-433.02848958,0.00017,2]
[399541891,1766467846524,-274.18,0.00017,2]
[399541892,1766467846535,-1185.3213471,0.00017,2]
[399541893,1766467846547,-2245.3092668,0.00017,2]
[399541894,1766467846559,-404.72580003,0.00017,2]
[399541895,1766467846571,-745.7042,0.00017,2]
[399541896,1766467846583,-13054.6975725,0.00017,2]
[399541897,1766467846594,-423.74647872,0.00017,2]
[399541898,1766467846605,-154526.39245958,0.00017,2]
[399541899,1766467846616,-2183.75458493,0.00017,2]
[399541901,1766468031179,9076.76894593,0.00016,120]
[399541902,1766468321016,2110.95495911,0.00022,30]
[399541903,1766468505533,740.14339318,0.0001001,2]
[399541904,1766468505574,1290.04665757,0.0001001,2]
[399541905,1766468821710,160.76,7.774e-05,2]
[399541906,1766468984068,6509.0,0.00022,30]
[399541907,1766469032243,-160.76,0.00010365,2]
[399541908,1766469032254,-193.58299043,0.00011401,2]
[399541909,1766469032265,-160.76,0.00012956,2]
[399541910,1766469032275,-300.76108894,0.00013695,2]
[399541911,1766469032286,-899.23891106,0.00013695,2]
[399541912,1766469032296,-437.58240648,0.00013695,2]
[399541913,1766469032306,-300.0,0.00013695,2]
[399541914,1766469032316,-151.52,0.00013696,2]
[399541915,1766469032325,-152.45,0.00013696,2]
[399541916,1766469032335,-152.06,0.00013696,2]
[399541917,1766469032345,-150.8,0.00013696,2]
[399541918,1766469032355,-150.86,0.00013696,2]
[399541919,1766469032365,-150.0,0.00013696,2]
[399541920,1766469032374,-300.0,0.00013696,2]
[399541921,1766469032387,-151.09,0.00013697,2]
[399541922,1766469032397,-152.64,0.00013697,2]
[399541923,1766469032407,-151.99,0.00013697,2]
[399541924,1766469032417,-150.63,0.00013697,2]
[399541925,1766469032426,-151.2,0.00013697,2]
[399541926,1766469032436,-150.14,0.00013697,2]
[399541927,1766469032446,-151.21,0.00013697,2]
[399541928,1766469032455,-152.89,0.00013697,2]
[399541929,1766469032465,-152.47,0.00013697,2]
[399541930,1766469032474,-151.16,0.00013697,2]
[399541931,1766469032484,-152.56,0.00013697,2]
[399541932,1766469032493,-150.16,0.00013697,2]
[399541933,1766469032503,-150.93,0.00013697,2]
[399541934,1766469032513,-151.12,0.00013697,2]
[399541935,1766469032522,-150.23,0.00013697,2]
[399541936,1766469032531,-152.8,0.00013697,2]
[399541937,1766469032540,-150.85,0.00013697,2]
[399541938,1766469032550,-152.15,0.00013697,2]
[399541939,1766469032560,-150.05,0.00013697,2]
[399541940,1766469032569,-151.55,0.00013697,2]
[399541941,1766469032581,-151.65,0.00013697,2]
[399541942,1766469032591,-136.4839519,0.00013698,2]
[399541943,1766469032603,-418.0060481,0.00013698,2]
[399541944,1766469032613,-554.49,0.00013698,2]
[399541945,1766469032623,-554.49,0.00013698,2]
[399541946,1766469032634,-554.49,0.00013698,2]
[399541947,1766469032643,-150.61,0.00013698,2]
[399541948,1766469032653,-151.67,0.00013698,2]
[399541949,1766469032662,-150.68,0.00013698,2]
[399541950,1766469032672,-151.98,0.00013698,2]
[399541951,1766469032681,-152.11,0.00013698,2]
[399541952,1766469032690,-152.9,0.00013698,2]
[399541953,1766469032700,-179.51,0.00014182,2]
[399541954,1766469032710,-166.66,0.00014626,2]
[399541955,1766469032720,-166.66,0.00014933,2]
[399541956,1766469032730,-300.0,0.00015065,2]
[399541957,1766469032740,-166.66,0.00015241,2]
[399541958,1766469032749,-197.6160128,0.00015288,2]
[399541959,1766469032759,-194.61616776,0.00015288,2]
[399541960,1766469032770,-157.6823216,0.00015288,2]
[399541961,1766469032780,-150.0,0.00015495,2]
[399541962,1766469032789,-160.76,0.00015547,2]
[399541963,1766469032798,-166.66,0.00015549,2]
[399541964,1766469032808,-150.0,0.00015713,2]
[399541965,1766469032818,-150.99,0.00015713,2]
[399541966,1766469032828,-9999.99,0.00015713,2]
[399541967,1766469032837,-9999.99,0.00015713,2]
[399541968,1766469032847,-166.66,0.00015842,2]
[399541969,1766469032857,-166.66,0.00015857,2]
[399541970,1766469032870,-241.68,0.00015863,2]
[399541971,1766469032879,-166.66,0.00016165,2]
[399541972,1766469032889,-166.66,0.00016365,2]
[399541973,1766469032899,-6353.2,0.00016438,2]
[399541974,1766469032910,-2698.60965705,0.00016438,2]
[399541975,1766469032922,-763.04969767,0.00016438,2]
[399541976,1766469032934,-877.5,0.00016438,2]
[399541977,1766469032945,-4386.85,0.00016438,2]
[399541978,1766469032957,-2205.88592063,0.00016438,2]
[399541979,1766469032968,-1072.07472465,0.00016438,2]
[399541980,1766469032978,-115.92527535,0.00016463,2]
[399541981,1766469032989,-84.07472465,0.00016463,2]
[399541982,1766469032999,-500.0,0.00016463,2]
[399541983,1766469033008,-151.0,0.00016463,2]
[399541984,1766469033018,-151.0,0.00016463,2]
[399541985,1766469033027,-151.0,0.00016463,2]
[399541986,1766469033036,-151.0,0.00016463,2]
[399541987,1766469033045,-151.0,0.00016463,2]
[399541988,1766469033055,-151.0,0.00016463,2]
[399541989,1766469033064,-151.0,0.00016463,2]
[399541990,1766469033074,-151.0,0.00016463,2]
[399541991,1766469033083,-151.0,0.00016463,2]
[399541992,1766469033093,-151.0,0.00016463,2]
[399541993,1766469033102,-151.0,0.00016463,2]
[399541994,1766469033111,-200.0,0.00016463,2]
[399541995,1766469033121,-1894.92527535,0.000168,2]
[399541996,1766469033150,-503.95767699,0.000168,2]
[399541997,1766469033172,-101.11704766,0.000168,2]
[399541998,1766469033183,-1305.70884183,0.000168,2]
[399541999,1766469033192,-166.53162096,0.000168,2]
[399542000,1766469033202,-4469.4824015,0.000168,2]
[399542001,1766469033214,-1014.60736093,0.000168,2]
[399542002,1766469033223,-184.38315852,0.000168,2]
[399542003,1766469033233,-1305.70884179,0.00016811,2]
[399542005,1766469033242,-1589.44148962,0.00016811,2]
[399542007,1766469033253,-462.29407284,0.00016811,2]
[399542018,1766469038332,-3432.35419994,0.00016811,2]
[399542019,1766469038345,-1305.70884179,0.00016822,2]
[399542020,1766469038354,-5484.0897624,0.00016822,2]
[399542021,1766469038364,-1305.70884179,0.00016833,2]
[399542023,1766469038374,-4154.77614577,0.00016833,2]
[399542025,1766469038386,-615.40162361,0.00016833,2]
[399542026,1766469038398,-713.91199302,0.00016833,2]
[399542027,1766469038408,-1305.70884179,0.00016844,2]
[399542028,1766469038418,-5484.0897624,0.00016844,2]
[399542029,1766469038429,-456.28940279,0.00016856,2]
[399542030,1766469038440,-849.419439,0.00016856,2]
[399542031,1766469038450,-5484.0897624,0.00016856,2]
[399542032,1766469038460,-1305.70884179,0.00016867,2]
[399542033,1766469038469,-5484.0897624,0.00016867,2]
[399542034,1766469038479,-1305.70884179,0.00016878,2]
[399542035,1766469038488,-5484.0897624,0.00016878,2]
[399542036,1766469038498,-316.12,0.0001688,2]
[399542037,1766469038507,-166.66,0.00016888,2]
[399542038,1766469038517,-1305.70884179,0.00016889,2]
[399542039,1766469038527,-5484.0897624,0.00016889,2]
[399542040,1766469038536,-164.68,0.0001689,2]
[399542041,1766469038545,-151.0,0.00016897,2]
[399542042,1766469038555,-297.7560138,0.00016898,2]
[399542043,1766469038564,-500.0,0.00016898,2]
[399542044,1766469038574,-500.0,0.00016898,2]
[399542045,1766469038583,-500.0,0.00016898,2]
[399542046,1766469038593,-419.84535872,0.00016898,2]
[399542047,1766469038603,-500.0,0.00016898,2]
[399542048,1766469038612,-500.0,0.00016898,2]
[399542049,1766469038622,-500.0,0.00016898,2]
[399542050,1766469038632,-500.0,0.00016898,2]
[399542051,1766469038641,-500.0,0.00016898,2]
[399542052,1766469038651,-500.0,0.00016898,2]
[399542053,1766469038660,-500.0,0.00016898,2]
[399542054,1766469038669,-500.0,0.00016898,2]
[399542056,1766469038679,-500.0,0.00016898,2]
[399542057,1766469038688,-500.0,0.00016898,2]
[399542058,1766469038697,-500.0,0.00016898,2]
[399542059,1766469038707,-500.0,0.00016898,2]
[399542060,1766469038716,-410.25638277,0.00016898,2]
[399542061,1766469038728,-500.0,0.00016898,2]
[399542062,1766469038738,-500.0,0.00016898,2]
[399542063,1766469038747,-222.46979788,0.00016899,2]
[399542064,1766469038758,-500.0,0.00016899,2]
[399542065,1766469038767,-585.95711758,0.00016899,2]
[399542066,1766469038777,-230.85448575,0.00016899,2]
[399542067,1766469038787,-500.0,0.00016899,2]
[399542068,1766469038797,-528.48122381,0.00016899,2]
[399542069,1766469039110,-427.00372216,0.000169,2]
[399542070,1766469039120,-216487.5323967,0.000169,2]
[399542071,1766469039132,-1136.76751546,0.000169,2]
[399542072,1766469039143,-298.80399998,0.000169,2]
[399542077,1766469040504,-265.8,0.000169,2]
[399542078,1766469040672,-781811.09608786,0.000169,2]
[399542079,1766469040682,-1000.0,0.000169,2]
[399542080,1766469040692,-10000.0,0.000169,2]
[399542081,1766469040701,-1305.70884179,0.000169,2]
[399542082,1766469040712,-168.69,0.000169,2]
[399542083,1766469040732,-168.0,0.000169,2]
[399542084,1766469040742,-5484.0897624,0.000169,2]
[399542085,1766469040751,-204.73820807,0.000169,2]
[399542086,1766469040762,-205.7,0.000169,2]
[399542087,1766469040779,-825.34464119,0.000169,2]
[399542088,1766469040789,-822.03260644,0.000169,2]
[399542089,1766469040799,-237.00669718,0.000169,2]
[399542090,1766469040809,-212.29783598,0.000169,2]
[399542091,1766469040818,-500.0,0.000169,2]
[399542092,1766469040827,-500.0,0.000169,2]
[399542093,1766469040836,-500.0,0.000169,2]
[399542094,1766469040846,-500.0,0.000169,2]
[399542095,1766469040860,-500.0,0.000169,2]
[399542096,1766469040870,-500.0,0.000169,2]
[399542097,1766469040879,-500.0,0.000169,2]
[399542098,1766469040889,-500.0,0.000169,2]
[399542099,1766469040899,-500.0,0.000169,2]
[399542100,1766469040909,-500.0,0.000169,2]
[399542101,1766469040918,-500.0,0.000169,2]
[399542102,1766469040927,-500.0,0.000169,2]
[399542103,1766469040938,-500.0,0.000169,2]
[399542104,1766469040947,-500.0,0.000169,2]
[399542105,1766469040957,-500.0,0.000169,2]
[399542106,1766469040966,-500.0,0.000169,2]
[399542107,1766469040976,-500.0,0.000169,2]
[399542108,1766469040986,-500.0,0.000169,2]
[399542109,1766469040996,-500.0,0.000169,2]
[399542110,1766469041005,-500.0,0.000169,2]
[399542111,1766469041015,-500.0,0.000169,2]
[399542112,1766469041025,-500.0,0.000169,2]
[399542113,1766469041035,-500.0,0.000169,2]
[399542114,1766469041044,-500.0,0.000169,2]
[399542115,1766469041054,-500.0,0.000169,2]
[399542116,1766469041064,-420.10008661,0.000169,2]
[399542117,1766469041073,-223.97693797,0.00016916,2]
[399542118,1766469041082,-160.0,0.00016959,2]
[399542119,1766469041092,-917.0,0.00016959,2]
[399542120,1766469041102,-855.84296595,0.00016963,2]
[399542121,1766469041112,-500.0,0.00016973,2]
[399542122,1766469041122,-500.0,0.00016973,2]
[399542123,1766469041131,-367.89785786,0.00016973,2]
[399542124,1766469041141,-500.0,0.00016973,2]
[399542125,1766469041150,-500.0,0.00016973,2]
[399542126,1766469041159,-500.0,0.00016973,2]
[399542127,1766469041168,-500.0,0.00016973,2]
[399542128,1766469041177,-500.0,0.00016973,2]
[399542129,1766469041187,-500.0,0.00016973,2]
[399542130,1766469041196,-500.0,0.00016973,2]
[399542131,1766469041205,-500.0,0.00016973,2]
[399542132,1766469041215,-500.0,0.00016973,2]
[399542133,1766469041224,-500.0,0.00016973,2]
[399542134,1766469041234,-500.0,0.00016973,2]
[399542135,1766469041243,-500.0,0.00016973,2]
[399542136,1766469041253,-500.0,0.00016973,2]
[399542137,1766469041262,-500.0,0.00016973,2]
[399542138,1766469041271,-500.0,0.00016973,2]
[399542139,1766469041280,-500.0,0.00016973,2]
[399542140,1766469041289,-500.0,0.00016973,2]
[399542141,1766469041298,-500.0,0.00016973,2]
[399542142,1766469041308,-500.0,0.00016973,2]
[399542143,1766469041317,-500.0,0.00016973,2]
[399542144,1766469041326,-500.0,0.00016973,2]
[399542145,1766469041335,-500.0,0.00016973,2]
[399542146,1766469041345,-500.0,0.00016973,2]
[399542147,1766469041354,-500.0,0.00016973,2]
[399542148,1766469041363,-500.0,0.00016973,2]
[399542149,1766469041373,-500.66742167,0.00016973,2]
[399542150,1766469041383,-500.0,0.00016973,2]
[399542151,1766469041392,-500.0,0.00016973,2]
[399542152,1766469041401,-500.0,0.00016973,2]
[399542153,1766469041410,-500.81090923,0.00016973,2]
[399542154,1766469041419,-500.0,0.00016973,2]
[399542155,1766469041429,-500.0,0.00016973,2]
[399542156,1766469041438,-150.0,0.00016973,2]
[399542157,1766469041447,-150.0,0.00016973,2]
[399542158,1766469041456,-500.0,0.00016983,2]
[399542159,1766469041466,-52523.28,0.00016986,2]
[399542160,1766469041475,-855.84296595,0.0001699,2]
[399542161,1766469041484,-855.84296595,0.0001699,2]
[399542162,1766469041493,-152.53710827,0.00016991,2]
[399542163,1766469041502,-151.0,0.00016997,2]
[399542164,1766469041511,-300.0,0.00016999,2]
[399542165,1766469041521,-311.05061399,0.00016999,2]
[399542166,1766469041530,-150.0,0.00016999,2]
[399542167,1766469041539,-666.0,0.00016999,2]
[399542168,1766469041548,-300.0,0.00016999,2]
[399542169,1766469041557,-3275598.57373478,0.00017,2]
[399542170,1766469041566,-1257016.73116122,0.00017,2]
[399542182,1766469043661,-177.08331248,0.000169,2]
[399542183,1766469043671,-168.03872459,0.00016983,2]
[399542196,1766469046611,-151.0,0.00016425,2]
[399542197,1766469046621,-49.93908087,0.00016983,2]
[399542198,1766469046630,-1384.6353609,0.00017,2]
[399542199,1766469046641,-2505.35903128,0.00017,2]
[399542200,1766469046652,-1553.8488098,0.00017,2]
[399542201,1766469134258,5000.0,0.00014,3]
[399542203,1766469720016,969.04,0.00013699,2]
[399542213,1766470231499,-476.81742465,0.00014173,2]
[399542214,1766470231610,-101.18988426,0.00014173,2]
[399542215,1766470231619,-267.0,0.00014173,2]
[399542216,1766470231629,-50.07648129,0.00014453,2]
[399542217,1766470231640,-1388.91954942,0.00014453,2]
[399542218,1766470231651,-1061.00396929,0.00014453,2]
[399542219,1766470231661,-674.68,0.00014746,2]
[399542220,1766470231671,-85.92011574,0.00014888,2]
[399542235,1766470237632,-1114.07988426,0.00014888,2]
[399542236,1766470237641,-999.0,0.00014889,3]
[399542237,1766470237651,-1391.96354873,0.00014889,2]
[399542238,1766470237748,-460.45645127,0.00014889,2]
[399542239,1766470237757,-127.54354873,0.00014943,2]
[399542240,1766470237768,-172.45645127,0.00014943,2]
[399542241,1766470237778,-287.0,0.00014943,2]
[399542242,1766470237787,-406.41691523,0.00014944,2]
[399542243,1766470237808,-2093.58308477,0.00014944,2]
[399542244,1766470237818,-2500.0,0.00014944,2]
[399542245,1766470237827,-2500.0,0.00014944,2]
[399542246,1766470237836,-1588.92,0.00015296,2]
[399542247,1766470237845,-1600.0,0.00015372,2]
[399542248,1766470237854,-5525.0,0.000154,5]
[399542249,1766470237863,-1724.73,0.00015403,2]
[399542250,1766470237872,-1724.73,0.00015403,2]
[399542251,1766470237881,-1724.73,0.00015403,2]
[399542252,1766470237889,-1724.73,0.00015403,2]
[399542253,1766470237898,-1724.73,0.00015403,2]
[399542254,1766470237907,-500.0,0.00015412,2]
[399542255,1766470237916,-170.30114927,0.00015412,2]
[399542256,1766470237925,-500.0,0.00015412,2]
[399542257,1766470237934,-191.5068436,0.00015412,2]
[399542258,1766470237943,-500.0,0.00015412,2]
[399542259,1766470237953,-500.0,0.00015412,2]
[399542260,1766470237962,-500.0,0.00015412,2]
[399542261,1766470237971,-500.0,0.00015412,2]
[399542262,1766470237980,-242.89142023,0.00015412,2]
[399542263,1766470237989,-500.0,0.00015412,2]
[399542264,1766470237998,-500.0,0.00015412,2]
[399542265,1766470238007,-500.0,0.00015412,2]
[399542266,1766470238015,-500.0,0.00015412,2]
[399542267,1766470238025,-500.0,0.00015412,2]
[399542268,1766470238034,-500.0,0.00015412,2]
[399542269,1766470238043,-622.16961577,0.00015412,2]
[399542270,1766470238052,-500.0,0.00015412,2]
[399542271,1766470238061,-500.0,0.00015412,2]
[399542272,1766470238070,-500.0,0.00015412,2]
[399542273,1766470238079,-500.0,0.00015412,2]
[399542274,1766470238088,-500.0,0.00015412,2]
[399542275,1766470238097,-500.0,0.00015412,2]
[399542276,1766470238106,-500.0,0.00015412,2]
[399542277,1766470238115,-500.0,0.00015412,2]
[399542278,1766470238124,-500.0,0.00015412,2]
[399542279,1766470238133,-500.0,0.00015412,2]
[399542280,1766470238142,-500.0,0.00015412,2]
[399542281,1766470238151,-500.0,0.00015412,2]
[399542293,1766470238460,-364.42602214,0.00015412,2]
[399542294,1766470238474,-135.57397786,0.00015412,2]
[399542295,1766470238484,-500.0,0.00015412,2]
[399542296,1766470238493,-500.0,0.00015412,2]
[399542297,1766470238504,-500.0,0.00015412,2]
[399542298,1766470238514,-500.0,0.00015412,2]
[399542299,1766470238524,-500.0,0.00015412,2]
[399542300,1766470238534,-500.0,0.00015412,2]
[399542301,1766470238544,-500.0,0.00015412,2]
[399542302,1766470238553,-500.0,0.00015412,2]
[399542303,1766470238562,-500.0,0.00015412,2]
[399542304,1766470238572,-500.0,0.00015412,2]
[399542305,1766470238581,-500.0,0.00015412,2]
[399542306,1766470238590,-500.0,0.00015412,2]
[399542307,1766470238600,-500.0,0.00015412,2]
[399542308,1766470238609,-500.0,0.00015412,2]
[399542309,1766470238619,-40000.54272865,0.00015413,2]
[399542310,1766470238631,-114426.1114852,0.00015413,2]
[399542321,1766470239658,-3323.63181829,0.00015413,2]
[399542348,1766470239935,-628.0193291,0.00015413,2]
[399542349,1766470239992,-841621.69463876,0.00015413,2]
[399542350,1766470240001,-502.0,0.00015452,2]
[399542351,1766470240010,-3000.0,0.000155,2]
[399542352,1766470240019,-679.33704431,0.00015525,2]
[399542353,1766470240028,-196.20702848,0.00015525,2]
[399542354,1766470240038,-250.0,0.0001559,2]
[399542355,1766470240047,-2500.0,0.0001559,2]
[399542356,1766470240056,-9999.99,0.00015604,2]
[399542357,1766470240065,-883.89,0.00015604,2]
[399542358,1766470240075,-3502.26,0.00015604,2]
[399542359,1766470240086,-999.99,0.00015604,2]
[399542360,1766470240095,-150.99,0.00015604,2]
[399542361,1766470240104,-1544.09,0.00015604,2]
[399542362,1766470240113,-499.99,0.00015604,2]
[399542363,1766470240122,-500.0,0.00015604,2]
[399542364,1766470240132,-151.0,0.00015604,2]
[399542365,1766470240142,-500.0,0.00015604,2]
[399542366,1766470240152,-151.0,0.00015604,2]
[399542367,1766470240161,-184.2911423,0.00015604,2]
[399542368,1766470240170,-151.0,0.00015604,2]
[399542369,1766470240180,-151.0,0.00015604,2]
[399542370,1766470240190,-151.0,0.00015604,2]
[399542371,1766470240199,-151.0,0.00015604,2]
[399542372,1766470240209,-153.21186412,0.00015604,2]
[399542373,1766470240218,-335.26105309,0.00015604,2]
[399542374,1766470240228,-500.0,0.00015604,2]
[399542375,1766470240237,-500.0,0.00015604,2]
[399542376,1766470240246,-500.0,0.00015604,2]
[399542377,1766470240256,-500.0,0.00015604,2]
[399542378,1766470240265,-200.0,0.00015604,2]
[399542379,1766470240275,-500.0,0.00015604,2]
[399542380,1766470240284,-500.0,0.00015604,2]
[399542381,1766470240293,-500.0,0.00015604,2]
[399542382,1766470240303,-500.0,0.00015604,2]
[399542383,1766470240312,-529.63919594,0.00015604,2]
[399542384,1766470240321,-151.0,0.00015604,2]
[399542385,1766470240331,-151.0,0.00015604,2]
[399542386,1766470240340,-151.0,0.00015604,2]
[399542387,1766470240350,-151.0,0.00015604,2]
[399542388,1766470240359,-151.0,0.00015604,2]
[399542389,1766470240368,-151.0,0.00015604,2]
[399542390,1766470240377,-151.0,0.00015604,2]
[399542391,1766470240387,-151.0,0.00015604,2]
[399542392,1766470240396,-151.0,0.00015604,2]
[399542393,1766470240406,-151.0,0.00015604,2]
[399542394,1766470240415,-151.0,0.00015604,2]
[399542395,1766470240425,-344.56,0.00015604,2]
[399542396,1766470240436,-162.701,0.0001561,2]
[399542397,1766470240446,-2554.388,0.0001561,2]
[399542398,1766470240459,-151.0,0.0001561,2]
[399542399,1766470240468,-473.00714686,0.00015625,2]
[399542400,1766470240477,-151.0,0.00015755,2]
[399542401,1766470240487,-200.0,0.00015758,2]
[399542402,1766470240497,-3240.0,0.00015762,2]
[399542403,1766470240507,-151.0,0.00015777,2]
[399542404,1766470240517,-200.0,0.00015826,2]
[399542405,1766470240526,-344.56,0.00015878,2]
[399542406,1766470240535,-200.0,0.00016029,2]
[399542407,1766470240545,-344.56,0.00016152,2]
[399542408,1766470240555,-5000.0,0.000163,2]
[399542409,1766470240564,-5000.0,0.000164,2]
[399542410,1766470240574,-344.56,0.00016426,2]
[399542411,1766470240583,-5823.8,0.00016438,2]
[399542412,1766470240593,-600.0,0.00016438,2]
[399542413,1766470240603,-679.33704429,0.00016514,2]
[399542414,1766470240612,-685.0,0.00016699,2]
[399542415,1766470240621,-150.0,0.00016699,2]
[399542416,1766470240631,-500.0,0.00016699,2]
[399542417,1766470240640,-500.0,0.00016699,2]
[399542418,1766470240649,-150.0,0.00016699,2]
[399542419,1766470240659,-500.0,0.00016699,2]
[399542420,1766470240671,-150.0,0.00016699,2]
[399542421,1766470240684,-500.0,0.00016699,2]
[399542422,1766470240694,-150.0,0.00016699,2]
[399542423,1766470240703,-500.0,0.00016699,2]
[399542424,1766470240712,-150.0,0.00016699,2]
[399542425,1766470240723,-150.0,0.00016699,2]
[399542426,1766470240732,-150.0,0.00016699,2]
[399542427,1766470240741,-150.0,0.00016699,2]
[399542428,1766470240751,-150.0,0.00016699,2]
[399542429,1766470240760,-150.0,0.00016699,2]
[399542430,1766470240769,-500.0,0.00016699,2]
[399542431,1766470240778,-455.0,0.00016699,2]
[399542432,1766470240788,-150.0,0.00016699,2]
[399542433,1766470240798,-500.0,0.00016699,2]
[399542434,1766470240807,-150.0,0.00016699,2]
[399542435,1766470240816,-500.0,0.00016699,2]
[399542436,1766470240826,-500.0,0.00016699,2]